fUST/lending_fUST_20251110
["ID","MTS","AMOUNT","RATE_DAILY","PERIOD"]
[393491598,1762717838619,-646.38112703,0.00018988,2]
[393491599,1762717838628,-500.0,0.00018989,2]
[393491602,1762717838639,-500.0,0.00018989,2]
[393491604,1762717838649,-500.0,0.00018989,2]
[393491606,1762717838659,-540.00602318,0.00018989,2]
[393491607,1762717838669,-167.84318753,0.00019058,2]
[393491610,1762717838678,-500.0,0.00019072,2]
[393491612,1762717838688,-500.0,0.00019072,2]
[393491614,1762717838699,-500.0,0.00019073,2]
[393491616,1762717838708,-500.0,0.00019073,2]
[393491618,1762717838717,-500.0,0.00019073,2]
[393491620,1762717838727,-500.0,0.00019073,2]
[393491622,1762717838739,-500.0,0.00019073,2]
[393491624,1762717838748,-506.96789076,0.00019073,2]
[393491626,1762717838758,-500.0,0.00019073,2]
[393491628,1762717838772,-264.08585792,0.00019073,2]
[393491630,1762717838783,-500.0,0.00019073,2]
[393491632,1762717838793,-500.0,0.00019073,2]
[393491634,1762717838803,-500.0,0.00019073,2]
[393491636,1762717838812,-500.0,0.00019073,2]
[393491638,1762717838822,-505.18612198,0.00019073,2]
[393491640,1762717838833,-500.0,0.00019073,2]
[393491642,1762717838843,-500.0,0.00019073,2]
[393491644,1762717838852,-500.0,0.00019073,2]
[393491646,1762717838864,-500.0,0.00019073,2]
[393491649,1762717838877,-500.0,0.00019073,2]
[393491651,1762717838887,-500.0,0.00019073,2]
[393491653,1762717838898,-151.0,0.00019098,2]
[393491655,1762717838908,-151.0,0.00019098,2]
[393491656,1762717838918,-151.0,0.00019098,2]
[393491658,1762717838929,-500.0,0.00019098,2]
[393491660,1762717838938,-500.0,0.00019098,2]
[393491663,1762717838950,-500.0,0.00019098,2]
[393491664,1762717838960,-150.0,0.000191,2]
[393491666,1762717838970,-150.0,0.000191,2]
[393491668,1762717838982,-150.0,0.000191,2]
[393491671,1762717838993,-150.0,0.000191,2]
[393491673,1762717839003,-150.0,0.000191,2]
[393491675,1762717839013,-150.0,0.000191,2]
[393491676,1762717839022,-150.0,0.000191,2]
[393491679,1762717839032,-150.0,0.000191,2]
[393491681,1762717839043,-150.0,0.000191,2]
[393491683,1762717839052,-150.0,0.000191,2]
[393491685,1762717839061,-150.0,0.000191,2]
[393491687,1762717839070,-150.0,0.000191,2]
[393491689,1762717839080,-150.0,0.000191,2]
[393491691,1762717839089,-150.0,0.000191,2]
[393491693,1762717839100,-500.0,0.00019178,2]
[393491695,1762717839110,-500.0,0.00019178,2]
[393491697,1762717839119,-500.0,0.00019178,2]
[393491699,1762717839129,-151.0,0.00019178,2]
[393491701,1762717839139,-151.0,0.00019178,2]
[393491703,1762717839149,-151.0,0.00019178,2]
[393491705,1762717839159,-151.0,0.00019178,2]
[393491707,1762717839169,-151.0,0.00019178,2]
[393491709,1762717839179,-151.0,0.00019178,2]
[393491710,1762717839190,-151.0,0.00019178,2]
[393491713,1762717839202,-151.0,0.00019178,2]
[393491715,1762717839215,-239.73,0.000192,2]
[393491717,1762717839227,-239.73,0.000192,2]
[393491718,1762717839238,-239.73,0.000192,2]
[393491720,1762717839250,-239.73,0.000192,2]
[393491721,1762717839260,-239.73,0.000192,2]
[393491722,1762717839272,-239.73,0.000192,2]
[393491723,1762717839283,-239.73,0.000192,2]
[393491724,1762717839293,-239.73,0.000192,2]
[393491726,1762717839303,-239.73,0.000192,2]
[393491727,1762717839312,-150.0,0.000193,2]
[393491728,1762717839322,-150.0,0.000193,2]
[393491729,1762717839331,-150.0,0.000193,2]
[393491730,1762717839340,-150.0,0.000193,2]
[393491731,1762717839348,-150.0,0.000193,2]
[393491732,1762717839358,-239.73,0.000193,2]
[393491733,1762717839368,-239.73,0.000193,2]
[393491734,1762717839378,-239.73,0.000193,2]
[393491735,1762717839387,-239.73,0.000193,2]
[393491736,1762717839396,-239.73,0.000193,2]
[393491737,1762717839406,-239.73,0.000193,2]
[393491738,1762717839415,-239.73,0.000193,2]
[393491739,1762717839425,-239.73,0.000193,2]
[393491740,1762717839435,-239.73,0.000193,2]
[393491741,1762717839445,-239.73,0.000193,2]
[393491742,1762717839455,-239.73,0.000193,2]
[393491743,1762717839466,-239.73,0.000193,2]
[393491744,1762717839476,-239.73,0.000193,2]
[393491745,1762717839486,-500.0,0.00019347,2]
[393491746,1762717839495,-239.73,0.000194,2]
[393491747,1762717839505,-239.73,0.000194,2]
[393491748,1762717839515,-239.73,0.000194,2]
[393491749,1762717839525,-239.73,0.000194,2]
[393491750,1762717839534,-239.73,0.000194,2]
[393491751,1762717839544,-239.73,0.000194,2]
[393491752,1762717839554,-239.73,0.000194,2]
[393491753,1762717839563,-239.73,0.000194,2]
[393491754,1762717839573,-239.73,0.000194,2]
[393491755,1762717839583,-239.73,0.000194,2]
[393491756,1762717839592,-239.73,0.000194,2]
[393491757,1762717839602,-239.73,0.000194,2]
[393491758,1762717839612,-3235.06011979,0.00019481,2]
[393491759,1762717839622,-500.0,0.00019491,2]
[393491760,1762717839631,-500.0,0.00019491,2]
[393491761,1762717839640,-239.73,0.000195,2]
[393491762,1762717839650,-239.73,0.000195,2]
[393491763,1762717839659,-239.73,0.000195,2]
[393491764,1762717839672,-239.73,0.000195,2]
[393491765,1762717839682,-239.73,0.000195,2]
[393491766,1762717839692,-239.73,0.000195,2]
[393491767,1762717839702,-239.73,0.000195,2]
[393491768,1762717839711,-239.73,0.000195,2]
[393491769,1762717839721,-239.73,0.000195,2]
[393491770,1762717839731,-239.73,0.000195,2]
[393491771,1762717839741,-239.73,0.000195,2]
[393491772,1762717839751,-239.73,0.000195,2]
[393491773,1762717839760,-239.73,0.000195,2]
[393491774,1762717839771,-856.2167932,0.00019521,2]
[393491776,1762717839897,-1000.0,0.00019521,2]
[393491778,1762717839908,-1000.0,0.00019521,2]
[393491780,1762717839918,-1000.0,0.00019521,2]
[393491781,1762717839927,-728.82717968,0.00019521,2]
[393491782,1762717839937,-1000.0,0.00019521,2]
[393491783,1762717839947,-797.55058667,0.00019521,2]
[393491784,1762717839957,-1000.0,0.00019521,2]
[393491785,1762717839967,-1000.0,0.00019521,2]
[393491786,1762717839977,-1000.0,0.00019521,2]
[393491787,1762717839987,-502.71859211,0.00019521,2]
[393491788,1762717839996,-1000.0,0.00019521,2]
[393491789,1762717840006,-500.0,0.0001957,2]
[393491790,1762717840015,-500.0,0.0001957,2]
[393491791,1762717840025,-500.0,0.0001957,2]
[393491792,1762717840035,-500.0,0.0001957,2]
[393491793,1762717840044,-500.0,0.0001957,2]
[393491794,1762717840054,-500.0,0.0001957,2]
[393491796,1762717840063,-500.0,0.0001957,2]
[393491797,1762717840073,-500.0,0.0001957,2]
[393491798,1762717840082,-500.0,0.0001957,2]
[393491799,1762717840092,-500.0,0.0001957,2]
[393491800,1762717840102,-500.0,0.0001957,2]
[393491801,1762717840111,-271.64843923,0.0001957,2]
[393491802,1762717840121,-394.11650354,0.0001957,2]
[393491803,1762717840131,-500.0,0.00019571,2]
[393491804,1762717840140,-500.0,0.00019571,2]
[393491805,1762717840149,-500.0,0.00019571,2]
[393491806,1762717840159,-500.0,0.00019571,2]
[393491807,1762717840168,-500.0,0.00019571,2]
[393491808,1762717840177,-171.88466099,0.00019571,2]
[393491809,1762717840187,-500.0,0.00019571,2]
[393491810,1762717840203,-500.0,0.00019571,2]
[393491811,1762717840212,-500.0,0.00019571,2]
[393491812,1762717840222,-500.0,0.00019571,2]
[393491813,1762717840231,-500.0,0.00019571,2]
[393491814,1762717840242,-500.0,0.00019571,2]
[393491815,1762717840252,-500.0,0.00019571,2]
[393491816,1762717840261,-620.85571295,0.00019571,2]
[393491817,1762717840271,-151.0,0.00019571,2]
[393491819,1762717840282,-500.0,0.00019571,2]
[393491821,1762717840292,-500.0,0.00019571,2]
[393491823,1762717840302,-500.0,0.00019571,2]
[393491825,1762717840311,-500.0,0.00019571,2]
[393491827,1762717840322,-500.0,0.00019571,2]
[393491829,1762717840331,-500.0,0.00019571,2]
[393491831,1762717840341,-500.0,0.00019571,2]
[393491833,1762717840350,-500.0,0.00019571,2]
[393491835,1762717840360,-500.0,0.00019571,2]
[393491837,1762717840370,-500.0,0.00019571,2]
[393491839,1762717840379,-500.0,0.00019571,2]
[393491841,1762717840389,-500.0,0.00019571,2]
[393491843,1762717840399,-500.0,0.00019571,2]
[393491845,1762717840408,-500.0,0.00019571,2]
[393491847,1762717840418,-500.0,0.00019571,2]
[393491849,1762717840427,-500.0,0.00019571,2]
[393491851,1762717840436,-500.0,0.00019571,2]
[393491853,1762717840446,-500.0,0.00019571,2]
[393491855,1762717840455,-522.21025299,0.00019571,2]
[393491857,1762717840464,-1465.67,0.00019571,2]
[393491859,1762717840474,-1465.67,0.00019571,2]
[393491861,1762717840485,-1465.67,0.00019571,2]
[393491863,1762717840494,-1465.67,0.00019571,2]
[393491865,1762717840504,-1465.67,0.00019571,2]
[393491867,1762717840513,-1465.67,0.00019571,2]
[393491869,1762717840522,-1465.67,0.00019571,2]
[393491871,1762717840532,-1465.67,0.00019571,2]
[393491873,1762717840542,-1465.67,0.00019571,2]
[393491876,1762717840552,-1465.67,0.00019571,2]
[393491879,1762717840562,-1465.67,0.00019571,2]
[393491881,1762717840571,-1465.67,0.00019571,2]
[393491883,1762717840580,-1465.67,0.00019571,2]
[393491885,1762717840590,-1465.67,0.00019571,2]
[393491887,1762717840600,-1465.67,0.00019571,2]
[393491889,1762717840609,-1465.67,0.00019571,2]
[393491890,1762717840619,-1465.67,0.00019571,2]
[393491892,1762717840628,-1465.67,0.00019571,2]
[393491894,1762717840638,-1465.67,0.00019571,2]
[393491896,1762717840648,-1465.67,0.00019571,2]
[393491899,1762717840657,-1465.67,0.00019571,2]
[393491901,1762717840667,-1465.67,0.00019571,2]
[393491903,1762717840676,-1465.67,0.00019571,2]
[393491905,1762717840686,-1465.77905666,0.00019571,2]
[393491906,1762717840695,-500.0,0.00019573,2]
[393491909,1762717840705,-172.15507544,0.00019573,2]
[393491911,1762717840715,-500.47224689,0.00019573,2]
[393491912,1762717840724,-501.12138783,0.00019573,2]
[393491915,1762717840735,-577.32582921,0.00019573,2]
[393491917,1762717840745,-158.23034068,0.00019573,2]
[393491919,1762717840754,-503.15777276,0.00019573,2]
[393491921,1762717840763,-500.0,0.00019573,2]
[393491922,1762717840772,-500.0,0.00019573,2]
[393491924,1762717840782,-500.0,0.00019573,2]
[393491927,1762717840793,-500.0,0.00019573,2]
[393491929,1762717840802,-500.0,0.00019573,2]
[393491931,1762717840811,-230.88578648,0.00019573,2]
[393491933,1762717840821,-500.0,0.00019573,2]
[393491935,1762717840830,-500.0,0.00019573,2]
[393491937,1762717840839,-22191.42852559,0.00019581,2]
[393491939,1762717840850,-239.73,0.000196,2]
[393491941,1762717840859,-239.73,0.000196,2]
[393491943,1762717840869,-500.0,0.00019621,2]
[393491945,1762717840878,-501.23509135,0.00019621,2]
[393491947,1762717840888,-455.03075088,0.00019621,2]
[393491949,1762717840897,-417.99981792,0.00019621,2]
[393491950,1762717840907,-920.76579493,0.00019621,2]
[393491953,1762717840917,-1000.0,0.00019621,2]
[393491955,1762717840926,-391.06057567,0.00019621,2]
[393491956,1762717840935,-487.97674061,0.00019621,2]
[393491959,1762717840948,-503.19168683,0.00019621,2]
[393491961,1762717840958,-236.27609465,0.00019626,2]
[393491963,1762717840968,-1000.0,0.00019696,2]
[393491965,1762717840977,-501.5332089,0.000198,2]
[393491967,1762717840988,-1285.16024785,0.00019839,2]
[393491969,1762717840997,-500.0,0.00019895,2]
[393491971,1762717841007,-332.6660253,0.00020039,2]
[393491973,1762717841016,-1500.0,0.00020068,2]
[393491975,1762717841026,-1500.0,0.00020068,2]
[393491976,1762717841035,-1500.0,0.00020068,2]
[393491978,1762717841044,-1500.0,0.00020068,2]
[393491981,1762717841054,-1500.0,0.00020068,2]
[393491983,1762717841063,-1386.46848177,0.00020068,2]
[393491985,1762717841074,-1500.0,0.00020068,2]
[393491987,1762717841083,-1002.65858154,0.00020121,2]
[393491989,1762717841092,-1000.0,0.00020121,2]
[393491990,1762717841101,-1000.0,0.00020121,2]
[393491992,1762717841111,-1000.0,0.00020121,2]
[393491994,1762717841120,-1002.81085202,0.00020121,2]
[393491996,1762717841130,-1000.0,0.00020121,2]
[393491999,1762717841140,-380.68531716,0.00020121,2]
[393492000,1762717841149,-1000.0,0.00020121,2]
[393492002,1762717841159,-500.0,0.00020168,2]
[393492004,1762717841168,-500.0,0.00020442,2]
[393492007,1762717841178,-177.0,0.00020571,2]
[393492009,1762717841191,-2000.0,0.00020616,2]
[393492011,1762717841202,-2000.0,0.00020616,2]
[393492013,1762717841212,-2000.0,0.00020616,2]
[393492015,1762717841221,-2000.0,0.00020616,2]
[393492017,1762717841231,-1513.83522215,0.00020616,2]
[393492019,1762717841243,-2000.0,0.00020616,2]
[393492021,1762717841253,-1500.0,0.00020668,2]
[393492023,1762717841264,-1500.0,0.00020668,2]
[393492025,1762717841275,-1500.0,0.00020668,2]
[393492027,1762717841284,-1500.0,0.00020668,2]
[393492029,1762717841294,-1500.0,0.00020668,2]
[393492031,1762717841303,-504.6968516,0.00020673,2]
[393492033,1762717841312,-345.68770136,0.00020673,2]
[393492035,1762717841321,-500.0,0.00020673,2]
[393492037,1762717841330,-420.0,0.0002068,2]
[393492039,1762717841339,-420.0,0.0002068,2]
[393492041,1762717841349,-1680.0,0.00020703,2]
[393492043,1762717841359,-632.72389735,0.00020716,2]
[393492045,1762717841368,-500.0,0.00020774,2]
[393492047,1762717841377,-276.16,0.00020774,2]
[393492049,1762717841386,-1500.0,0.00020792,2]
[393492051,1762717841396,-167.84318753,0.00020937,2]
[393492053,1762717841407,-217.67309407,0.00020973,2]
[393492055,1762717841416,-500.70711121,0.00020973,2]
[393492057,1762717841426,-500.0,0.00020973,2]
[393492059,1762717841435,-165.100899,0.00020973,2]
[393492061,1762717841444,-622.37700586,0.00020973,2]
[393492064,1762717841460,-452.75241372,0.00020973,2]
[393492066,1762717841475,-504.8125901,0.00020973,2]
[393492068,1762717841485,-506.24072444,0.00020973,2]
[393492070,1762717841495,-500.42231438,0.00020973,2]
[393492072,1762717841504,-402.52602272,0.00020973,2]
[393492074,1762717841514,-500.0,0.00020973,2]
[393492076,1762717841524,-47736.73909396,0.0002099,2]
[393492078,1762717841534,-7080.35905964,0.00021,2]
[393492080,1762717841544,-339.0,0.00021079,2]
[393492082,1762717841553,-151.0,0.000211,4]
[393492084,1762717841563,-778.05206849,0.00021164,2]
[393492086,1762717841573,-2500.0,0.00021164,2]
[393492088,1762717841583,-2500.0,0.00021164,2]
[393492090,1762717841592,-2506.44073364,0.00021164,2]
[393492092,1762717841602,-2500.0,0.00021164,2]
[393492094,1762717841611,-2000.0,0.00021216,2]
[393492096,1762717841621,-2000.0,0.00021216,2]
[393492098,1762717841630,-1496.60722941,0.00021216,2]
[393492100,1762717841640,-1641.7621891,0.00021216,2]
[393492103,1762717841650,-1848.64354456,0.00021216,2]
[393492105,1762717841661,-500.0,0.00021221,2]
[393492107,1762717841671,-300.0,0.00021391,20]
[393492109,1762717841680,-300.0,0.00021391,20]
[393492111,1762717841689,-300.0,0.00021391,20]
[393492113,1762717841699,-300.0,0.00021391,20]
[393492115,1762717841708,-300.0,0.00021391,20]
[393492117,1762717841717,-300.0,0.00021391,20]
[393492119,1762717841727,-300.0,0.00021391,20]
[393492121,1762717841736,-300.0,0.00021391,20]
[393492123,1762717841745,-300.0,0.00021391,20]
[393492124,1762717841755,-300.0,0.00021391,20]
[393492126,1762717841764,-300.0,0.00021391,20]
[393492128,1762717841773,-300.0,0.00021391,20]
[393492130,1762717841783,-300.0,0.00021391,20]
[393492132,1762717841792,-300.0,0.00021391,20]
[393492134,1762717841802,-300.0,0.00021391,20]
[393492136,1762717841811,-600.0,0.00021391,20]
[393492139,1762717841821,-151.0,0.000214,4]
[393492140,1762717841830,-151.0,0.000215,3]
[393492142,1762717841840,-234.58398276,0.00021521,2]
[393492144,1762717841850,-151.0,0.000216,3]
[393492146,1762717841859,-151.0,0.000216,4]
[393492149,1762717841870,-2575.6919152,0.00021668,2]
[393492151,1762717841879,-151.0,0.000217,3]
[393492153,1762717841888,-3000.0,0.00021712,2]
[393492155,1762717841898,-3000.0,0.00021712,2]
[393492157,1762717841907,-3000.0,0.00021712,2]
[393492159,1762717841917,-180.91377466,0.00021744,2]
[393492162,1762717841930,-2500.0,0.00021764,2]
[393492164,1762717841939,-1687.80331138,0.00021764,2]
[393492165,1762717841948,-151.0,0.000218,4]
[393492167,1762717841957,-151.0,0.00021833,2]
[393492169,1762717841966,-151.0,0.00021833,2]
[393492171,1762717841976,-151.0,0.00021833,2]
[393492173,1762717841985,-151.0,0.00021833,2]
[393492175,1762717841995,-151.0,0.00021833,2]
[393492177,1762717842004,-151.0,0.00021833,2]
[393492179,1762717842014,-151.0,0.00021833,2]
[393492181,1762717842024,-151.0,0.00021833,2]
[393492183,1762717842033,-151.0,0.00021833,2]
[393492185,1762717842042,-151.0,0.00021833,2]
[393492187,1762717842051,-151.0,0.00021833,2]
[393492189,1762717842061,-500.0,0.00021834,2]
[393492191,1762717842071,-500.0,0.00021834,2]
[393492193,1762717842080,-500.0,0.00021834,2]
[393492195,1762717842089,-500.0,0.00021834,2]
[393492197,1762717842099,-500.0,0.00021834,2]
[393492199,1762717842107,-500.0,0.00021834,2]
[393492201,1762717842117,-500.0,0.00021834,2]
[393492203,1762717842127,-500.0,0.00021834,2]
[393492205,1762717842136,-500.0,0.00021834,2]
[393492207,1762717842146,-500.0,0.00021834,2]
[393492209,1762717842155,-500.0,0.00021834,2]
[393492211,1762717842164,-500.0,0.00021834,2]
[393492213,1762717842174,-500.0,0.00021834,2]
[393492215,1762717842183,-514.40730907,0.00021834,2]
[393492217,1762717842193,-500.0,0.00021834,2]
[393492219,1762717842205,-500.0,0.00021834,2]
[393492221,1762717842214,-500.0,0.00021834,2]
[393492223,1762717842225,-177.68397295,0.00021834,2]
[393492225,1762717842242,-535824.53913141,0.00021835,2]
[393492227,1762717842251,-299.94267828,0.00021844,2]
[393492229,1762717842261,-438.37253688,0.00021844,2]
[393492231,1762717842270,-789.07056638,0.00021844,2]
[393492233,1762717842280,-1402.79211801,0.00021844,2]
[393492235,1762717842290,-2191.8626844,0.00021844,2]
[393492237,1762717842299,-212.18153957,0.00021895,2]
[393492239,1762717842308,-381.54484445,0.00021895,2]
[393492241,1762717842318,-151.0,0.00021918,2]
[393492256,1762717842445,-500.0,0.00021922,2]
[393492258,1762717842455,-500.0,0.00021932,2]
[393492259,1762717842465,-596.67993589,0.00021932,2]
[393492261,1762717842475,-151.0,0.00021973,2]
[393492264,1762717842485,-151.0,0.00022,4]
[393492266,1762717842495,-361.15414577,0.00022002,2]
[393492268,1762717842505,-198.0,0.00022028,2]
[393492269,1762717842514,-4482.8,0.000222,7]
[393492271,1762717842524,-500.0,0.0002226,2]
[393492273,1762717842534,-500.0,0.0002226,2]
[393492275,1762717842543,-3000.0,0.00022312,2]
[393492277,1762717842553,-448.0,0.00022541,2]
[393492279,1762717842563,-587.0,0.00022541,2]
[393492282,1762717842573,-204.0,0.00022571,2]
[393492284,1762717842582,-1151.0,0.00022679,2]
[393492286,1762717842591,-650.07746239,0.00022715,2]
[393492288,1762717842600,-168.01103071,0.00022815,2]
[393492290,1762717842608,-3500.0,0.0002286,2]
[393492292,1762717842617,-600.000001,0.00023,2]
[393492294,1762717842627,-151.0,0.00023288,7]
[393492296,1762717842636,-153.664663,0.00023288,7]
[393492298,1762717842646,-500.0,0.00023408,2]
[393492300,1762717842655,-1155.69326647,0.00023429,2]
[393492302,1762717842664,-720.0,0.0002353,20]
[393492304,1762717842674,-430.36059687,0.00023642,2]
[393492306,1762717842683,-1805.77072887,0.00024142,2]
[393492308,1762717842692,-863.9776693,0.00024453,2]
[393492309,1762717842701,-231.0,0.00024571,2]
[393492310,1762717842710,-600.0,0.00024571,2]
[393492311,1762717842719,-217.64178371,0.00024574,2]
[393492312,1762717842729,-391.75521068,0.00024574,2]
[393492313,1762717842739,-696.45370788,0.00024574,2]
[393492314,1762717842748,-1088.20891856,0.00024574,2]
[393492315,1762717842756,-156.754422,0.00024658,7]
[393492316,1762717842766,-310.28595441,0.00024832,2]
[393492317,1762717842776,-305.79008751,0.00024832,2]
[393492318,1762717842785,-214650.016622,0.000249,2]
[393492320,1762717842795,-192.7794757,0.00025067,2]
[393492322,1762717842805,-270.55325975,0.00025355,2]
[393492323,1762717842814,-486.99586754,0.00025355,2]
[393492324,1762717842823,-865.77043119,0.00025355,2]
[393492326,1762717842833,-1352.76629874,0.00025355,2]
[393492328,1762717842843,-399.90919747,0.00025591,2]
[393492330,1762717842852,-160.0,0.00025594,2]
[393492331,1762717842863,-365.75767851,0.0002584,2]
[393492333,1762717842872,-193.04489849,0.00025867,2]
[393492335,1762717842882,-347.48081729,0.00025867,2]
[393492337,1762717842892,-617.74367518,0.00025867,2]
[393492339,1762717842901,-965.22449247,0.00025867,2]
[393492341,1762717842911,-304.18957589,0.00025867,2]
[393492344,1762717842923,-547.54123661,0.00025867,2]
[393492346,1762717842932,-973.40664286,0.00025867,2]
[393492348,1762717842941,-1520.94787947,0.00025867,2]
[393492350,1762717842951,-2190.16494643,0.00025867,2]
[393492351,1762717842960,-864.0,0.00025883,20]
[393492354,1762717842970,-430.36059687,0.0002599,3]
[393492355,1762717842980,-150.0,0.00026,2]
[393492357,1762717842990,-150.0,0.00026,2]
[393492359,1762717843000,-150.0,0.00026,2]
[393492362,1762717843011,-150.0,0.000261,2]
[393492363,1762717843022,-150.0,0.000261,2]
[393492365,1762717843031,-150.0,0.000261,2]
[393492367,1762717843040,-340.59122547,0.00026139,2]
[393492369,1762717843050,-613.06420584,0.00026139,2]
[393492371,1762717843059,-1089.89192149,0.00026139,2]
[393492373,1762717843069,-1702.95612733,0.00026139,2]
[393492375,1762717843078,-258.0,0.00026571,2]
[393492377,1762717843089,-445.136802,0.00026676,2]
[393492379,1762717843098,-458.815048,0.00026984,2]
[393492381,1762717843107,-179.0,0.00027,7]
[393492383,1762717843117,-697.34450842,0.000272,2]
[393492386,1762717843126,-284.91,0.000274,2]
[393492388,1762717843136,-477.13414638,0.00027533,2]
[393492390,1762717843145,-858.84146349,0.00027533,2]
[393492392,1762717843154,-1526.82926843,0.00027533,2]
[393492394,1762717843163,-2385.67073192,0.00027533,2]
[393492395,1762717843172,-3435.36585396,0.00027533,2]
[393492398,1762717843182,-4675.91463456,0.00027533,2]
[393492400,1762717843192,-1112.29911045,0.00028015,2]
[393492402,1762717843205,-168.0,0.00028092,2]
[393492404,1762717843214,-168.0,0.00028255,2]
[393492406,1762717843223,-168.0,0.00028272,2]
[393492408,1762717843232,-168.0,0.00028298,2]
[393492409,1762717843244,-430.36059687,0.00028338,4]
[393492411,1762717843253,-168.0,0.00028399,2]
[393492413,1762717843262,-168.0,0.0002846,2]
[393492415,1762717843271,-1000.0,0.00028471,30]
[393492417,1762717843282,-285.0,0.00028571,2]
[393492420,1762717843292,-618.53380149,0.00028631,2]
[393492421,1762717843301,-168.0,0.0002874,2]
[393492423,1762717843310,-179.0,0.00028767,14]
[393492425,1762717843319,-168.0,0.00028919,2]
[393492427,1762717843329,-10968.62922567,0.00029184,2]
[393492429,1762717843338,-168.0,0.00029241,2]
[393492431,1762717843347,-168.0,0.00029284,2]
[393492433,1762717843357,-168.0,0.00029445,2]
[393492435,1762717843366,-168.0,0.00029467,2]
[393492437,1762717843375,-168.0,0.00030108,2]
[393492439,1762717843384,-878.23481489,0.00030138,2]
[393492441,1762717843394,-286.588,0.00030413,26]
[393492443,1762717843404,-182.55706755,0.00030413,26]
[393492445,1762717843413,-168.0,0.00030564,2]
[393492448,1762717843423,-312.0,0.00030571,2]
[393492450,1762717843432,-168.0,0.00030583,2]
[393492452,1762717843442,-430.36059687,0.00030686,5]
[393492454,1762717843452,-3159.79115285,0.00030964,7]
[393492456,1762717843461,-168.0,0.00030999,2]
[393492458,1762717843470,-1000.0,0.00031319,30]
[393492460,1762717843479,-244.0,0.00031319,30]
[393492462,1762717843490,-1623.19925453,0.00031725,2]
[393492463,1762717843499,-790.73852674,0.00031725,7]
[393492465,1762717843508,-1105.58295299,0.00031725,2]
[393492468,1762717843518,-287.50027108,0.00032079,7]
[393492470,1762717843528,-284.11406291,0.00032571,2]
[393492472,1762717843537,-500.0,0.00032876,2]
[393492474,1762717843547,-500.0,0.00032876,2]
[393492476,1762717843556,-1281.91,0.00032877,10]
[393492478,1762717843566,-1068.26,0.00032877,10]
[393492480,1762717843575,-890.21,0.00032877,10]
[393492482,1762717843584,-741.84,0.00032877,10]
[393492484,1762717843594,-239.72254945,0.0003293,7]
[393492486,1762717843603,-430.79095747,0.00033033,7]
[393492488,1762717843613,-311.05,0.0003315,14]
[393492490,1762717843622,-445.136802,0.00033165,2]
[393492492,1762717843631,-500.0,0.00033424,2]
[393492494,1762717843641,-500.0,0.00033424,2]
[393492496,1762717843651,-311.05,0.00033698,15]
[393492498,1762717843660,-500.0,0.00033972,2]
[393492499,1762717843670,-500.0,0.00033972,2]
[393492500,1762717843679,-399.90919747,0.00034,7]
[393492501,1762717843690,-311.05,0.00034246,16]
[393492502,1762717843699,-1000.0,0.0003445,30]
[393492503,1762717843709,-492.0,0.0003445,30]
[393492504,1762717843719,-500.0,0.0003452,2]
[393492505,1762717843729,-1148.85108322,0.00034543,7]
[393492506,1762717843739,-311.05,0.00034794,17]